fUSD/lending_fUSD_20250208
["ID","MTS","AMOUNT","RATE_DAILY","PERIOD"]
[352228620,1739010645430,-522.15654777,0.00010972,2]
[352228622,1739010645439,-504.77311965,0.00010972,2]
[352228624,1739010645448,-1127.28,0.00010972,2]
[352228626,1739010645457,-500.68517813,0.00010972,2]
[352228628,1739010645467,-582.61,0.00010972,2]
[352228630,1739010645476,-5240.61,0.00010972,2]
[352228632,1739010645486,-500.94636486,0.00010972,2]
[352228634,1739010645500,-5923.07561217,0.00010972,2]
[352228687,1739010645996,-686.84438783,0.00010972,2]
[352228689,1739010646007,-501.48426374,0.00010972,2]
[352228691,1739010646017,-1460.2,0.00010972,2]
[352228693,1739010646027,-500.0,0.00010972,2]
[352228695,1739010646037,-1755.14,0.00010972,2]
[352228697,1739010646046,-15737.4,0.00010972,2]
[352228699,1739010646055,-500.0,0.00010972,2]
[352228701,1739010646066,-306.41869274,0.00010972,2]
[352228702,1739010646075,-500.0,0.00010972,2]
[352228704,1739010646085,-500.0,0.00010972,2]
[352228706,1739010646095,-3661.63,0.00010972,2]
[352228708,1739010646104,-500.97820501,0.00010972,2]
[352228710,1739010646113,-474.91886737,0.00010972,2]
[352228712,1739010646123,-595.91365654,0.00010972,2]
[352228714,1739010646132,-500.0,0.00010972,2]
[352228716,1739010646141,-500.0,0.00010972,2]
[352228718,1739010646151,-500.0,0.00010972,2]
[352228720,1739010646160,-500.0,0.00010972,2]
[352228722,1739010646170,-500.42338837,0.00010972,2]
[352228724,1739010646178,-500.0,0.00010972,2]
[352228726,1739010646188,-500.0,0.00010972,2]
[352228728,1739010646198,-500.0,0.00010972,2]
[352228730,1739010646207,-500.0,0.00010972,2]
[352228731,1739010646216,-500.0,0.00010972,2]
[352228733,1739010646226,-5401.36,0.00010972,2]
[352228735,1739010646235,-500.0,0.00010972,2]
[352228737,1739010646245,-512.08948321,0.00010972,2]
[352228740,1739010646255,-1447.38,0.00010972,2]
[352228741,1739010646263,-500.0,0.00010972,2]
[352228743,1739010646273,-2384.54,0.00010972,2]
[352228745,1739010646282,-262.36052207,0.00010972,2]
[352228747,1739010646292,-500.0,0.00010972,2]
[352228750,1739010646302,-500.0,0.00010972,2]
[352228751,1739010646311,-507.4633239,0.00010972,2]
[352228753,1739010646320,-1550.54,0.00010972,2]
[352228755,1739010646329,-500.0,0.00010972,2]
[352228757,1739010646339,-501.76967525,0.00010972,2]
[352228759,1739010646348,-500.0,0.00010972,2]
[352228761,1739010646358,-500.0,0.00010972,2]
[352228763,1739010646367,-4085.93,0.00010972,2]
[352228765,1739010646376,-500.0,0.00010972,2]
[352228767,1739010646385,-500.0,0.00010972,2]
[352228769,1739010646396,-501.54148771,0.00010972,2]
[352228771,1739010646405,-500.0,0.00010972,2]
[352228773,1739010646414,-500.0,0.00010972,2]
[352228775,1739010646423,-1486.48,0.00010972,2]
[352228777,1739010646432,-500.0,0.00010972,2]
[352228779,1739010646441,-2319.27,0.00010972,2]
[352228781,1739010646450,-503.21415799,0.00010972,2]
[352228783,1739010646460,-841.9,0.00010972,2]
[352228785,1739010646469,-500.0,0.00010972,2]
[352228787,1739010646478,-502.0529963,0.00010972,2]
[352228789,1739010646487,-500.0,0.00010972,2]
[352228791,1739010646501,-500.0,0.00010972,2]
[352228793,1739010646510,-900.24,0.00010972,2]
[352228795,1739010646520,-500.0,0.00010972,2]
[352228797,1739010646532,-500.0,0.00010972,2]
[352228799,1739010646543,-500.0,0.00010972,2]
[352228801,1739010646552,-500.0,0.00010972,2]
[352228803,1739010646561,-708.71,0.00010972,2]
[352228805,1739010646571,-698.37,0.00010972,2]
[352228807,1739010646581,-500.0,0.00010972,2]
[352228809,1739010646590,-500.0,0.00010972,2]
[352228811,1739010646600,-500.0,0.00010972,2]
[352228812,1739010646610,-500.0,0.00010972,2]
[352228815,1739010646619,-500.0,0.00010972,2]
[352228816,1739010646629,-500.0,0.00010972,2]
[352228818,1739010646638,-500.0,0.00010972,2]
[352228820,1739010646647,-2136.94,0.00010972,2]
[352228822,1739010646656,-2691.89,0.00010972,2]
[352228824,1739010646666,-500.0,0.00010972,2]
[352228826,1739010646675,-500.46673447,0.00010972,2]
[352228828,1739010646684,-4070.16,0.00010972,2]
[352228830,1739010646694,-500.0,0.00010972,2]
[352228832,1739010646703,-500.3886456,0.00010972,2]
[352228834,1739010646712,-500.0,0.00010972,2]
[352228836,1739010646721,-374.24690408,0.00010972,2]
[352228838,1739010646730,-4988.9,0.00010972,2]
[352228840,1739010646740,-500.0,0.00010972,2]
[352228842,1739010646749,-500.0,0.00010972,2]
[352228844,1739010646758,-504.89526477,0.00010972,2]
[352228846,1739010646767,-3396.91,0.00010972,2]
[352228848,1739010646776,-500.0,0.00010972,2]
[352228850,1739010646786,-6573.01,0.00010972,2]
[352228852,1739010646795,-500.0,0.00010972,2]
[352228854,1739010646804,-500.0,0.00010972,2]
[352228856,1739010646813,-500.0,0.00010972,2]
[352228858,1739010646822,-2955.5,0.00010972,2]
[352228859,1739010646831,-776.1,0.00010972,2]
[352228861,1739010646840,-500.0,0.00010972,2]
[352228863,1739010646849,-500.0,0.00010972,2]
[352228874,1739010646859,-500.0,0.00010972,2]
[352228876,1739010646945,-500.0,0.00010972,2]
[352228878,1739010646954,-1679.55,0.00010972,2]
[352228880,1739010646963,-500.0,0.00010972,2]
[352228882,1739010646972,-500.0,0.00010972,2]
[352228884,1739010646982,-913.19,0.00010972,2]
[352228885,1739010646991,-569.44051693,0.00010972,2]
[352228888,1739010647001,-5135.34,0.00010972,2]
[352228889,1739010647010,-503.2160936,0.00010972,2]
[352228891,1739010647020,-500.0,0.00010972,2]
[352228893,1739010647030,-500.0,0.00010972,2]
[352228895,1739010647039,-500.0,0.00010972,2]
[352228896,1739010647049,-500.0,0.00010972,2]
[352228897,1739010647059,-500.0,0.00010972,2]
[352228898,1739010647067,-500.0,0.00010972,2]
[352228899,1739010647076,-500.0,0.00010972,2]
[352228900,1739010647086,-500.0,0.00010972,2]
[352228901,1739010647096,-3733.81,0.00010972,2]
[352228902,1739010647105,-500.0,0.00010972,2]
[352228903,1739010647115,-500.0,0.00010972,2]
[352228904,1739010647124,-2458.94,0.00010972,2]
[352228905,1739010647134,-500.73693359,0.00010972,2]
[352228906,1739010647143,-501.86131758,0.00010972,2]
[352228907,1739010647154,-500.0,0.00010972,2]
[352228908,1739010647163,-500.0,0.00010972,2]
[352228909,1739010647172,-503.34308419,0.00010972,2]
[352228910,1739010647182,-500.0,0.00010972,2]
[352228911,1739010647192,-516.23254994,0.00010972,2]
[352228912,1739010647202,-543.91448702,0.00010972,2]
[352228914,1739010647212,-500.0,0.00010972,2]
[352228915,1739010647222,-504.05176596,0.00010972,2]
[352228917,1739010647232,-4170.11,0.00010972,2]
[352228919,1739010647241,-500.0,0.00010972,2]
[352228921,1739010647250,-500.0,0.00010972,2]
[352228923,1739010647259,-500.0,0.00010972,2]
[352228925,1739010647268,-500.0,0.00010972,2]
[352228927,1739010647278,-2848.19,0.00010972,2]
[352228929,1739010647288,-500.0,0.00010972,2]
[352228931,1739010647297,-500.0,0.00010972,2]
[352228933,1739010647307,-2046.88,0.00010972,2]
[352228935,1739010647316,-500.0,0.00010972,2]
[352228937,1739010647325,-500.0,0.00010972,2]
[352228939,1739010647334,-2105.66,0.00010972,2]
[352228941,1739010647343,-500.0,0.00010972,2]
[352228943,1739010647352,-500.0,0.00010973,2]
[352228945,1739010647361,-150.0,0.00010976,2]
[352228947,1739010647371,-150.0,0.00010979,2]
[352228949,1739010647381,-150.0,0.00010982,2]
[352228951,1739010647390,-150.0,0.00010983,2]
[352228953,1739010647400,-150.0,0.00010983,2]
[352228955,1739010647409,-150.0,0.00010986,2]
[352228957,1739010647418,-3218.3459013,0.00010989,2]
[352228959,1739010647428,-1540.0746534,0.00010989,2]
[352228961,1739010647437,-150.0,0.00010996,2]
[352228963,1739010647447,-150.0,0.00010997,2]
[352228965,1739010647457,-500.0,0.00010998,2]
[352228967,1739010647466,-500.0,0.00010998,2]
[352228969,1739010647476,-501.60888486,0.00010998,2]
[352228971,1739010647487,-500.0,0.00010998,2]
[352228973,1739010647499,-525.25311548,0.00010998,2]
[352228975,1739010647509,-756.95,0.00010998,2]
[352228977,1739010647518,-843.59,0.00010998,2]
[352228979,1739010647528,-500.0,0.00010998,2]
[352228981,1739010647538,-500.0,0.00010998,2]
[352228983,1739010647547,-727.03,0.00010998,2]
[352228984,1739010647556,-639.13,0.00010998,2]
[352228986,1739010647565,-500.0,0.00010998,2]
[352228989,1739010647576,-500.0,0.00010998,2]
[352228990,1739010647584,-500.0,0.00010998,2]
[352228992,1739010647593,-1218.21,0.00010998,2]
[352228994,1739010647602,-500.0,0.00010998,2]
[352228996,1739010647611,-500.0,0.00010998,2]
[352228998,1739010647619,-500.0,0.00010998,2]
[352229000,1739010647628,-500.0,0.00010998,2]
[352229002,1739010647636,-500.0,0.00010998,2]
[352229004,1739010647646,-500.0,0.00010998,2]
[352229006,1739010647656,-519.25759795,0.00010998,2]
[352229008,1739010647665,-500.0,0.00010998,2]
[352229010,1739010647674,-500.0,0.00010998,2]
[352229012,1739010647683,-500.0,0.00010998,2]
[352229014,1739010647692,-500.0,0.00010998,2]
[352229016,1739010647701,-500.0,0.00010998,2]
[352229018,1739010647710,-500.0,0.00010998,2]
[352229020,1739010647719,-500.0,0.00010998,2]
[352229022,1739010647728,-500.0,0.00010998,2]
[352229023,1739010647737,-500.82356971,0.00010998,2]
[352229025,1739010647746,-500.0,0.00010998,2]
[352229027,1739010647755,-500.78219175,0.00010998,2]
[352229030,1739010647764,-500.0,0.00010998,2]
[352229031,1739010647773,-500.0,0.00010998,2]
[352229033,1739010647782,-1119.8,0.00010998,2]
[352229036,1739010647791,-500.0,0.00010998,2]
[352229038,1739010647801,-500.0,0.00010998,2]
[352229039,1739010647810,-828.89,0.00010998,2]
[352229041,1739010647820,-500.0,0.00010998,2]
[352229043,1739010647829,-778.08,0.00010998,2]
[352229045,1739010647839,-503.67,0.00010998,2]
[352229047,1739010647848,-500.0,0.00010998,2]
[352229049,1739010647858,-500.0,0.00010998,2]
[352229051,1739010647867,-524.86967192,0.00010998,2]
[352229053,1739010647877,-500.60435142,0.00010998,2]
[352229055,1739010647887,-500.0,0.00010998,2]
[352229057,1739010647896,-500.0,0.00010998,2]
[352229059,1739010647906,-942.58,0.00010998,2]
[352229061,1739010647915,-500.0,0.00010998,2]
[352229063,1739010647924,-500.0,0.00010998,2]
[352229065,1739010647934,-500.0,0.00010998,2]
[352229067,1739010647943,-532.66350161,0.00010998,2]
[352229069,1739010647953,-500.0,0.00010998,2]
[352229072,1739010647965,-502.38227955,0.00010998,2]
[352229074,1739010647975,-500.0,0.00010998,2]
[352229076,1739010647983,-500.0,0.00010998,2]
[352229078,1739010647992,-500.0,0.00010998,2]
[352229080,1739010648002,-500.0,0.00010998,2]
[352229082,1739010648012,-1043.91,0.00010998,2]
[352229084,1739010648022,-500.0,0.00010998,2]
[352229085,1739010648032,-500.0,0.00010998,2]
[352229088,1739010648043,-500.0,0.00010998,2]
[352229090,1739010648053,-500.0,0.00010998,2]
[352229092,1739010648063,-786.52,0.00010998,2]
[352229093,1739010648073,-500.0,0.00010998,2]
[352229095,1739010648083,-500.0,0.00010998,2]
[352229097,1739010648093,-500.0,0.00010998,2]
[352229099,1739010648103,-500.0,0.00010998,2]
[352229102,1739010648114,-500.0,0.00010998,2]
[352229103,1739010648123,-500.0,0.00010998,2]
[352229106,1739010648133,-500.0,0.00010998,2]
[352229107,1739010648144,-907.37,0.00010998,2]
[352229109,1739010648154,-500.0,0.00010998,2]
[352229111,1739010648163,-500.0,0.00010998,2]
[352229113,1739010648173,-500.0,0.00010998,2]
[352229115,1739010648183,-500.0,0.00010998,2]
[352229117,1739010648193,-852.59,0.00010998,2]
[352229119,1739010648202,-500.0,0.00010998,2]
[352229121,1739010648211,-672.98,0.00010998,2]
[352229123,1739010648222,-500.0,0.00010998,2]
[352229125,1739010648233,-500.0,0.00010998,2]
[352229127,1739010648243,-500.0,0.00010998,2]
[352229129,1739010648252,-530.83,0.00010998,2]
[352229131,1739010648262,-1013.07,0.00010998,2]
[352229133,1739010648272,-500.0,0.00010998,2]
[352229135,1739010648282,-501.47906731,0.00010998,2]
[352229137,1739010648292,-2031.03,0.00010998,2]
[352229139,1739010648301,-500.0,0.00010998,2]
[352229141,1739010648310,-705.51,0.00010998,2]
[352229143,1739010648320,-500.0,0.00010998,2]
[352229145,1739010648330,-560.46,0.00010998,2]
[352229147,1739010648341,-500.0,0.00010998,2]
[352229149,1739010648351,-500.0,0.00010998,2]
[352229151,1739010648360,-2056.87,0.00010998,2]
[352229153,1739010648369,-500.0,0.00010998,2]
[352229155,1739010648379,-500.0,0.00010998,2]
[352229157,1739010648388,-2896.5,0.00010998,2]
[352229159,1739010648397,-500.0,0.00010998,2]
[352229161,1739010648407,-226.93826182,0.00010998,2]
[352229163,1739010648416,-500.0,0.00010998,2]
[352229165,1739010648425,-2331.16,0.00010998,2]
[352229167,1739010648435,-5013.95269478,0.00010998,2]
[352229169,1739010648445,-638.96,0.00010998,2]
[352229171,1739010648455,-1067.8,0.00010998,2]
[352229172,1739010648464,-500.0,0.00010998,2]
[352229174,1739010648474,-500.0,0.00010998,2]
[352229176,1739010648485,-911.05,0.00010998,2]
[352229178,1739010648497,-500.0,0.00010998,2]
[352229181,1739010648508,-500.0,0.00010998,2]
[352229182,1739010648518,-500.0,0.00010998,2]
[352229185,1739010648528,-969.58,0.00010998,2]
[352229187,1739010648539,-500.0,0.00010998,2]
[352229188,1739010648548,-500.0,0.00010998,2]
[352229190,1739010648558,-500.0,0.00010998,2]
[352229192,1739010648567,-522.33,0.00010998,2]
[352229194,1739010648578,-910.16,0.00010998,2]
[352229196,1739010648587,-1865.72185138,0.00010998,2]
[352229201,1739010648624,-505.99814862,0.00010998,2]
[352229203,1739010648633,-500.0,0.00010998,2]
[352229205,1739010648643,-500.0,0.00010998,2]
[352229207,1739010648652,-500.0,0.00010998,2]
[352229209,1739010648662,-500.0,0.00010998,2]
[352229211,1739010648671,-2298.58,0.00010998,2]
[352229213,1739010648680,-500.0,0.00010998,2]
[352229215,1739010648690,-500.0,0.00010998,2]
[352229217,1739010648702,-500.0,0.00010998,2]
[352229219,1739010648712,-500.0,0.00010998,2]
[352229221,1739010648723,-349.15790107,0.00010998,2]
[352229330,1739010649791,-150.84209893,0.00010998,2]
[352229332,1739010649802,-409.62942398,0.00010998,2]
[352229408,1739010650652,-90.37057602,0.00010998,2]
[352229410,1739010650662,-500.0,0.00010998,2]
[352229413,1739010650672,-2221.73,0.00010998,2]
[352229415,1739010650681,-892.09,0.00010998,2]
[352229417,1739010650691,-752.46,0.00010998,2]
[352229419,1739010650701,-500.0,0.00010998,2]
[352229421,1739010650710,-580.97,0.00010998,2]
[352229423,1739010650721,-500.0,0.00010998,2]
[352229425,1739010650730,-1777.05,0.00010998,2]
[352229427,1739010650740,-500.0,0.00010998,2]
[352229429,1739010650750,-500.0,0.00010998,2]
[352229431,1739010650760,-877.31,0.00010998,2]
[352229433,1739010650769,-500.0,0.00010998,2]
[352229458,1739010650779,-838.52,0.00010998,2]
[352229462,1739010651012,-500.0,0.00010998,2]
[352229464,1739010651023,-500.0,0.00010998,2]
[352229466,1739010651032,-864.22,0.00010998,2]
[352229468,1739010651041,-500.0,0.00010998,2]
[352229470,1739010651050,-500.0,0.00010998,2]
[352229472,1739010651059,-505.74323604,0.00010998,2]
[352229474,1739010651068,-500.0,0.00010998,2]
[352229476,1739010651078,-500.0,0.00010998,2]
[352229478,1739010651088,-500.0,0.00010998,2]
[352229480,1739010651097,-535.46,0.00010998,2]
[352229482,1739010651105,-502.22726306,0.00010998,2]
[352229484,1739010651115,-893.66,0.00010998,2]
[352229486,1739010651124,-1108.85,0.00010998,2]
[352229488,1739010651133,-500.0,0.00010998,2]
[352229490,1739010651142,-500.0,0.00010998,2]
[352229492,1739010651151,-515.02716471,0.00010998,2]
[352229493,1739010651161,-1231.77,0.00010998,2]
[352229495,1739010651171,-500.0,0.00010998,2]
[352229497,1739010651180,-500.0,0.00010998,2]
[352229499,1739010651190,-813.0811349,0.00010999,2]
[352229502,1739010651200,-500.0,0.00010999,2]
[352229504,1739010651210,-1226.06,0.00010999,2]
[352229506,1739010651220,-500.0,0.00010999,2]
[352229508,1739010651230,-2171.71,0.00010999,2]
[352229510,1739010651239,-500.0,0.00010999,2]
[352229512,1739010651248,-500.0,0.00010999,2]
[352229514,1739010651258,-531.46,0.00010999,2]
[352229515,1739010651267,-683.29,0.00010999,2]
[352229517,1739010651277,-1412.02,0.00010999,2]
[352229520,1739010651286,-2994.49,0.00010999,2]
[352229522,1739010651296,-500.0,0.00010999,2]
[352229524,1739010651305,-1350.72,0.00010999,2]
[352229526,1739010651314,-503.4622008,0.00010999,2]
[352229528,1739010651323,-500.0,0.00010999,2]
[352229530,1739010651333,-500.0,0.00010999,2]
[352229532,1739010651342,-500.0,0.00010999,2]
[352229534,1739010651352,-500.0,0.00010999,2]
[352229536,1739010651361,-500.0,0.00010999,2]
[352229538,1739010651370,-500.0,0.00010999,2]
[352229540,1739010651380,-500.0,0.00010999,2]
[352229542,1739010651389,-500.0,0.00010999,2]
[352229543,1739010651399,-580.47956935,0.00010999,2]
[352229545,1739010651413,-1026.29,0.00010999,2]
[352229547,1739010651422,-419.79770344,0.00010999,2]
[352229549,1739010651432,-500.0,0.00010999,2]
[352229551,1739010651442,-1380.14,0.00010999,2]
[352229553,1739010651452,-939.24,0.00010999,2]
[352229555,1739010651461,-829.74,0.00010999,2]
[352229557,1739010651471,-500.0,0.00010999,2]
[352229559,1739010651480,-500.0,0.00010999,2]
[352229561,1739010651489,-500.0,0.00010999,2]
[352229563,1739010651501,-2205.09,0.00010999,2]
[352229565,1739010651510,-503.22420269,0.00010999,2]
[352229567,1739010651519,-1079.62,0.00010999,2]
[352229569,1739010651529,-500.0,0.00010999,2]
[352229571,1739010651538,-500.0,0.00010999,2]
[352229573,1739010651549,-500.0,0.00010999,2]
[352229575,1739010651558,-500.0,0.00010999,2]
[352229577,1739010651567,-828.08,0.00010999,2]
[352229579,1739010651577,-500.0,0.00010999,2]
[352229581,1739010651586,-500.0,0.00010999,2]
[352229583,1739010651597,-500.0,0.00010999,2]
[352229585,1739010651607,-500.0,0.00010999,2]
[352229587,1739010651616,-500.0,0.00010999,2]
[352229589,1739010651625,-500.0,0.00010999,2]
[352229591,1739010651635,-500.0,0.00010999,2]
[352229593,1739010651644,-949.06,0.00010999,2]
[352229595,1739010651653,-1790.45,0.00010999,2]
[352229597,1739010651662,-891.09,0.00010999,2]
[352229599,1739010651671,-1205.69,0.00010999,2]
[352229601,1739010651680,-500.0,0.00010999,2]
[352229603,1739010651689,-1848.91,0.00010999,2]
[352229605,1739010651699,-780.21,0.00010999,2]
[352229607,1739010651708,-915.11,0.00010999,2]
[352229609,1739010651717,-500.0,0.00010999,2]
[352229610,1739010651728,-1754.02694899,0.00010999,2]
[352229692,1739011139974,-5000.0,8.836e-05,2]
[352229694,1739011831858,-565.74,8.219e-05,2]
[352229695,1739011831867,-266.5507,8.699e-05,2]
[352229696,1739011831877,-500.0,8.767e-05,2]
[352229697,1739011831886,-1853.9445,8.836e-05,2]
[352229698,1739011831896,-500.0,9.041e-05,2]
[352229699,1739011831905,-863.59662,9.486e-05,2]
[352229700,1739011831917,-150.0,9.534e-05,2]
[352229701,1739011831926,-500.0,9.569e-05,2]
[352229702,1739011831935,-300.0,9.709e-05,2]
[352229703,1739011831944,-23900.0,9.71e-05,2]
[352229704,1739011831954,-200.0,9.741e-05,2]
[352229705,1739011831963,-200.0,9.759e-05,2]
[352229706,1739011831971,-226.49,9.79e-05,2]
[352229707,1739011831981,-1000.0,9.799e-05,2]
[352229708,1739011831989,-156.95,9.907e-05,2]
[352229709,1739011831998,-774.87,0.00010027,2]
[352229710,1739011832008,-163.35,0.00010137,2]
[352229711,1739011832018,-673.19,0.00010164,2]
[352229712,1739011832027,-150.0,0.00010164,2]
[352229713,1739011832039,-436.92,0.00010164,2]
[352229714,1739011832049,-150.0,0.00010164,2]
[352229715,1739011832058,-899.0,0.000102,3]
[352229716,1739011832068,-565.74,0.00010466,2]
[352229717,1739011832078,-5555.0,0.000105,5]
[352229718,1739011832087,-420.0,0.0001068,2]
[352229719,1739011832096,-150.0,0.00010731,2]
[352229720,1739011832105,-150.0,0.00010732,2]
[352229721,1739011832116,-150.0,0.00010739,2]
[352229722,1739011832126,-150.0,0.00010748,2]
[352229723,1739011832137,-150.0,0.00010755,2]
[352229724,1739011832147,-150.0,0.00010756,2]
[352229725,1739011832156,-300.0,0.00010761,2]
[352229726,1739011832166,-150.0,0.00010767,2]
[352229727,1739011832176,-150.0,0.00010767,2]
[352229728,1739011832185,-150.0,0.00010768,2]
[352229730,1739011832194,-300.0,0.00010778,2]
[352229731,1739011832204,-150.0,0.00010785,2]
[352229733,1739011832212,-150.0,0.00010785,2]
[352229735,1739011832221,-150.0,0.00010787,2]
[352229737,1739011832230,-150.0,0.00010788,2]
[352229739,1739011832240,-150.0,0.00010789,2]
[352229741,1739011832250,-150.0,0.00010791,2]
[352229742,1739011832259,-150.0,0.00010808,2]
[352229743,1739011832270,-150.0,0.00010817,2]
[352229744,1739011832279,-164.3676523,0.00010818,2]
[352229745,1739011832289,-150.0,0.00010831,2]
[352229746,1739011832299,-150.0,0.00010833,2]
[352229747,1739011832309,-150.0,0.00010836,2]
[352229748,1739011832318,-150.0,0.00010846,2]
[352229749,1739011832327,-150.0,0.0001085,2]
[352229750,1739011832337,-150.0,0.00010864,2]
[352229751,1739011832346,-300.0,0.00010872,2]
[352229752,1739011832355,-150.0,0.00010877,2]
[352229753,1739011832364,-150.0,0.00010877,2]
[352229754,1739011832373,-150.0,0.00010882,2]
[352229755,1739011832383,-150.0,0.00010882,2]
[352229756,1739011832392,-150.0,0.0001089,2]
[352229757,1739011832401,-150.0,0.00010891,2]
[352229758,1739011832411,-1000.0,0.00010891,2]
[352229759,1739011832419,-150.0,0.00010894,2]
[352229760,1739011832428,-300.0,0.00010898,2]
[352229761,1739011832438,-1001.89782645,0.00010899,2]
[352229762,1739011832447,-651.66315414,0.000109,2]
[352229763,1739011832456,-10099.09518498,0.000109,2]
[352229764,1739011832466,-160.55279626,0.000109,2]
[352229765,1739011832476,-697.27,0.00010906,2]
[352229766,1739011832485,-150.0,0.00010907,2]
[352229767,1739011832494,-150.0,0.0001091,2]
[352229768,1739011832503,-150.0,0.00010916,2]
[352229769,1739011832512,-150.0,0.00010917,2]
[352229770,1739011832521,-150.0,0.00010917,2]
[352229771,1739011832530,-150.0,0.00010926,2]
[352229772,1739011832539,-150.0,0.00010927,2]
[352229773,1739011832548,-150.0,0.00010929,2]
[352229774,1739011832557,-150.0,0.00010931,2]
[352229775,1739011832566,-788.36,0.00010935,2]
[352229776,1739011832575,-500.30383374,0.00010935,2]
[352229777,1739011832584,-500.0,0.00010935,2]
[352229778,1739011832592,-1754.18,0.00010935,2]
[352229779,1739011832601,-650.13,0.00010935,2]
[352229780,1739011832610,-500.39349618,0.00010935,2]
[352229781,1739011832619,-500.0,0.00010935,2]
[352229782,1739011832628,-2249.93,0.00010935,2]
[352229783,1739011832637,-1179.54,0.00010935,2]
[352229784,1739011832647,-123452.79583595,0.00010936,2]
[352229785,1739011832659,-307.31279,0.00010936,2]
[352229786,1739011832670,-18993.21240001,0.00010936,2]
[352229787,1739011832707,-28462.89369,0.00010936,2]
[352229788,1739011832739,-262.86599948,0.00010936,2]
[352229792,1739011837655,-1233.13019377,0.00010164,2]
[352229793,1739011837665,-59191.86952168,0.00010936,2]
[352229794,1739011837821,-20922.81430105,0.00010936,2]
[352229795,1739011837832,-44856.63721132,0.00010936,2]
[352229966,1739011839896,-1664.48,0.00010935,2]
[352229968,1739011839905,-2922.49262945,0.00010936,2]
[352229973,1739011839945,-10814.16239999,0.00010936,2]
[352229980,1739011840005,-6971.70190559,0.00010936,2]
[352229982,1739011840016,-496.26120567,0.00010936,2]
[352229989,1739011840067,-262.61,0.00010936,2]
[352229993,1739011840101,-4103.22740319,0.00010936,2]
[352230050,1739011840610,-500.0,0.00010935,2]
[352230051,1739011840619,-19386.67596401,0.00010936,2]
[352230575,1739011845854,-858.1105,8.699e-05,2]
[352230577,1739011845864,-543.42650541,0.00010935,2]
[352230580,1739011845875,-147.34349459,0.00010935,2]
[352230582,1739011845885,-685.54608305,0.00010936,2]
[352230586,1739011845922,-211875.9271897,0.00010936,2]
[352230588,1739011845932,-150.0,0.00010943,2]
[352230590,1739011845941,-150.0,0.00010944,2]
[352230592,1739011845951,-150.0,0.00010946,2]
[352230594,1739011845961,-150.0,0.00010946,2]
[352230596,1739011845970,-150.0,0.00010951,2]
[352230598,1739011845980,-150.0,0.00010953,2]
[352230600,1739011845990,-500.0,0.00010959,2]
[352230602,1739011846004,-2000.0,0.00010959,2]
[352230604,1739011846014,-500.0,0.00010959,2]
[352230606,1739011846024,-200.0,0.00010959,2]
[352230608,1739011846033,-150.0,0.0001096,2]
[352230610,1739011846043,-150.0,0.00010965,2]
[352230612,1739011846053,-150.0,0.0001097,2]
[352230614,1739011846063,-150.0,0.00010971,2]
[352230616,1739011846073,-501.30156041,0.00010972,2]
[352230618,1739011846083,-500.0,0.00010972,2]
[352230620,1739011846092,-501.26360262,0.00010972,2]